bitfinex/quotes_ETHUSD_20240618
["timestamp","ask_amount","ask_price","bid_price","bid_amount"]
[1718742603971,0.50519696,3427.5,3426.7,5.097133]
[1718742604410,0.50519696,3427.5,3426.9,2.91806]
[1718742604727,5.8875823,3427.6,3427.2,2.91775]
[1718742605078,5.8875823,3427.6,3427.3,2.91768]
[1718742605303,5.8875823,3427.6,3427.1,2.91791]
[1718742605503,8.8051123,3427.6,3426.7,0.583653]
[1718742605711,2.91775,3427.3,3426.7,0.583653]
[1718742606024,2.91775,3427.3,3426.8,0.6420413]
[1718742606216,0.50517172,3427.4,3426.8,0.6420413]
[1718742606418,7.14307172,3427.5,3426.7,1.5953]
[1718742606714,0.50517172,3427.5,3426.7,4.51355]
[1718742607012,5.8875823,3427.6,3426.7,4.51355]
[1718742607013,5.8875823,3427.6,3427.0,2.91799]
[1718742607214,0.79757172,3427.8,3427.1,2.91784]
[1718742607420,0.79757172,3427.8,3427.2,0.583581]
[1718742607622,0.2924,3427.8,3427.2,0.583581]
[1718742609030,2.91741,3427.7,3427.2,0.583581]
[1718742609247,2.91752,3427.6,3426.7,1.5953]
[1718742609432,6.31995,3427.3,3426.4,2.91849]
[1718742609642,2.91792,3427.1,3426.3,4.51387]
[1718742610512,0.50517172,3427.2,3426.6,2.91828]
[1718742610912,3.4022,3427.3,3426.6,2.91828]
[1718742611125,3.4022,3427.3,3426.7,2.9182]
[1718742611751,2.91786,3427.2,3426.4,2.91844]
[1718742612070,2.91786,3427.2,3426.3,2.91857]
[1718742612071,2.91795,3427.1,3426.3,2.91853]
[1718742612350,4.9652034,3427.3,3426.1,2.84]
[1718742612351,2.91809,3426.9,3426.1,5.75875]
[1718742612550,2.91809,3426.9,3426.1,2.84]
[1718742612757,2.91826,3426.7,3426.1,2.84]
[1718742613049,2.91842,3426.6,3426.1,2.84]
[1718742613249,2.91841,3426.6,3426.1,2.84]
[1718742613651,2.91845,3426.5,3426.1,2.84]
[1718742614151,2.91835,3426.6,3426.1,2.84]
[1718742614867,2.91844,3426.5,3426.1,2.84]
[1718742615067,2.91826,3426.7,3426.1,2.84]
[1718742615243,2.91819,3426.8,3426.1,2.84]
[1718742615446,3.42321172,3427.0,3426.1,2.84]
[1718742615447,2.91833,3426.7,3426.1,2.84]
[1718742615649,2.91841,3426.6,3426.1,2.84]
[1718742617423,2.91835,3426.6,3426.1,2.84]
[1718742617648,2.9185,3426.5,3425.7,2.91909]
[1718742617951,2.9185,3426.5,3425.7,3.370537]
[1718742619779,3.6926,3427.0,3426.0,2.91885]
[1718742620069,3.6926,3427.0,3426.1,2.91875]
[1718742620070,2.91819,3426.8,3426.1,2.91875]
[1718742620239,2.91815,3426.9,3426.1,0.583768]
[1718742620436,7.11587042,3427.0,3426.2,2.91861]
[1718742620631,7.11587042,3427.0,3426.1,3.502458]
[1718742620867,6.61061,3427.0,3426.1,3.502458]
[1718742621186,6.61061,3427.0,3426.2,2.91866]
[1718742621466,7.11583262,3427.0,3426.2,2.91866]
[1718742621640,0.50522801,3427.0,3426.3,1.5953]
[1718742621842,5.8875823,3427.1,3427.0,2.918]
[1718742622071,6.39273185,3427.8,3426.5,2.91839]
[1718742622285,6.39273185,3427.8,3427.1,2.91785]
[1718742622624,6.39273185,3427.8,3427.2,2.91781]
[1718742622833,0.50514955,3427.8,3427.2,2.91781]
[1718742623030,3.42230955,3428.0,3427.2,2.91781]
[1718742623665,5.91723,3427.9,3427.1,2.9179]
[1718742624184,0.2924,3427.8,3426.8,2.91809]
[1718742624398,7.82529919,3427.9,3426.6,3.578199]
[1718742624399,7.82533919,3427.9,3426.6,3.578199]
[1718742624602,2.91732,3427.8,3427.1,2.91791]
[1718742624896,3.0,3427.7,3427.0,2.91798]
[1718742625095,3.0,3427.7,3427.1,2.91791]
[1718742625294,3.0,3427.8,3427.1,2.9179]
[1718742625494,2.91733,3427.8,3427.0,2.91798]
[1718742625796,2.91733,3427.8,3427.3,2.91772]
[1718742625797,3.0,3427.8,3427.3,2.91772]
[1718742626092,3.0,3428.0,3427.3,2.91774]
[1718742626093,3.50514955,3428.0,3427.3,2.91774]
[1718742626267,3.0,3428.0,3427.3,2.91774]
[1718742626594,3.50514955,3428.0,3427.3,2.91774]
[1718742626812,3.50514955,3428.0,3427.2,2.91781]
[1718742626813,6.42229955,3428.0,3427.2,2.91781]
[1718742627003,8.54445331,3428.0,3427.2,2.91781]
[1718742627201,5.62730331,3428.0,3427.2,2.91781]
[1718742627511,3.50514955,3428.0,3427.3,2.91773]
[1718742627816,3.0,3428.0,3427.3,2.91773]
[1718742628049,2.91758,3427.5,3426.1,2.9187]
[1718742628175,0.291758,3427.4,3426.7,2.91825]
[1718742628380,2.91749,3427.6,3426.7,2.91825]
[1718742628617,0.50514955,3427.7,3426.8,2.91815]
[1718742628804,0.50514955,3427.7,3427.1,2.9179]
[1718742628805,3.0,3427.7,3427.1,2.9179]
[1718742629001,3.0,3427.7,3426.9,2.91807]
[1718742629318,3.2924,3427.8,3427.0,3.351777]
[1718742629808,3.2924,3427.8,3427.1,2.9179]
[1718742630214,3.0,3427.8,3427.1,2.9179]
[1718742630383,5.91736,3427.8,3427.0,3.351797]
[1718742630713,6.42250955,3427.8,3427.0,3.351797]
[1718742631102,2.91742,3427.7,3427.0,0.433797]
[1718742632202,2.91742,3427.7,3426.5,2.91839]
[1718742632203,2.91775,3427.3,3426.5,2.91839]
[1718742632412,2.91784,3427.2,3426.5,2.91839]
[1718742633391,2.91658506,3427.4,3426.6,2.91828]
[1718742633977,2.91778,3427.3,3426.6,2.91828]
[1718742634181,2.91778,3427.3,3426.6,3.793817]
[1718742635318,2.91778,3427.3,3426.6,0.875537]
[1718742635479,3.21008,3427.4,3426.6,3.793857]
[1718742635686,2.91777,3427.3,3426.6,0.875537]
[1718742635888,2.91777,3427.3,3426.6,3.793857]
[1718742636719,2.91777,3427.3,3426.7,0.6408387]
[1718742636906,2.91784,3427.2,3426.5,2.91842]
[1718742638228,2.91776,3427.3,3426.5,2.91842]
[1718742640527,2.91776,3427.3,3426.6,2.91832]
[1718742642027,2.91806,3427.0,3426.2,4.33857]
[1718742642227,2.91806,3427.0,3426.3,1.009738]
[1718742642402,2.91802,3427.0,3426.3,1.009738]
[1718742642746,2.91794,3427.1,3426.4,2.9185]
[1718742642928,2.91775,3427.3,3426.5,2.91842]
[1718742643129,2.91775,3427.3,3426.6,0.6846708]
[1718742643307,0.50515085,3427.5,3426.6,3.6030008]
[1718742643506,2.91768,3427.4,3426.6,3.6030008]
[1718742644741,2.91768,3427.4,3426.6,2.91833]
[1718742646746,2.91768,3427.4,3426.5,2.91842]
[1718742646747,3.2924,3427.5,3426.8,2.91817]
[1718742646946,3.79757727,3427.5,3426.8,2.91817]
[1718742648122,3.2924,3427.5,3426.8,2.91817]
[1718742648323,3.79754784,3427.5,3426.8,3.793653]
[1718742648532,0.50514784,3427.5,3427.1,2.91786]
[1718742648858,0.50514784,3427.8,3427.4,2.91766]
[1718742649011,0.50514784,3427.9,3427.5,3.209336]
[1718742649212,5.8875823,3428.0,3427.6,2.91741]
[1718742649738,5.8875823,3428.0,3427.5,0.291766]
[1718742649905,5.8875823,3428.0,3427.5,3.2279529]
[1718742650108,5.8875823,3428.0,3427.6,0.75655029]
[1718742651255,0.2924,3428.4,3427.6,3.67403029]
[1718742651572,5.8875823,3428.5,3427.6,0.75655029]
[1718742651869,5.8875823,3428.5,3428.3,2.91687]
[1718742652086,2.3774,3428.9,3428.3,2.91687]
[1718742652087,0.50494322,3428.6,3428.3,2.91687]
[1718742652370,3.0,3428.8,3428.3,2.91687]
[1718742652566,2.3774,3428.9,3428.3,2.91687]
[1718742652920,2.3774,3428.9,3428.2,2.91696]
[1718742653874,3.50494322,3429.0,3428.4,2.91679]
[1718742654414,3.50492839,3429.0,3428.4,2.91679]
[1718742654615,3.5049254,3429.0,3428.4,2.91679]
[1718742654915,3.5049254,3429.0,3428.5,2.91672]
[1718742655163,9.4081823,3429.1,3428.5,2.91672]
[1718742655478,5.8875823,3429.1,3428.5,2.91672]
[1718742655623,5.8875823,3429.1,3428.7,2.91655]
[1718742656128,5.8875823,3429.1,3428.8,2.91647]
[1718742656849,5.8875823,3429.1,3428.7,3.55500634]
[1718742657417,5.8875823,3429.1,3428.8,2.91646]
[1718742657849,3.0,3429.4,3428.8,2.91646]
[1718742658178,3.2924,3429.5,3428.9,2.91636]
[1718742658384,3.2924,3429.5,3428.9,3.56348863]
[1718742659180,3.2924,3429.5,3428.9,0.64712863]
[1718742659386,3.2924,3429.5,3428.7,2.91654]
[1718742659575,6.20828,3429.5,3428.7,2.91654]
[1718742659747,3.2924,3429.5,3428.8,2.91645]
[1718742659945,3.2924,3429.5,3429.0,2.91629]
[1718742660185,3.3611,3429.6,3429.1,2.91621]
[1718742660373,5.8875823,3429.7,3429.4,2.9159]
[1718742661059,5.8875823,3429.7,3429.1,2.91621]
[1718742661060,5.8875823,3429.7,3429.1,2.91619]
[1718742661394,5.8875823,3429.7,3429.3,2.91598]
[1718742661571,5.8875823,3429.7,3429.4,0.291598]
[1718742662668,5.8875823,3429.7,3429.4,3.207548]
[1718742663865,5.8875823,3429.7,3429.4,0.291598]
[1718742664065,5.8875823,3429.7,3429.1,2.9162]
[1718742664450,2.91571,3429.7,3428.8,2.91646]
[1718742664597,2.9158,3429.6,3428.8,2.91646]
[1718742664900,3.2082,3429.6,3428.9,2.91637]
[1718742665269,2.91571,3429.7,3428.9,2.91637]
[1718742665474,2.91571,3429.7,3428.9,3.499662]
[1718742665890,3.20811,3429.7,3428.9,3.499662]
[1718742666516,3.20811,3429.7,3429.0,2.91628]
[1718742667376,3.5211,3429.3,3428.6,2.91663]
[1718742667687,6.43714,3429.3,3428.4,3.46821342]
[1718742667868,6.43714,3429.3,3428.4,0.55148342]
[1718742668069,2.91648,3428.8,3428.0,2.91713]
[1718742668369,3.20888,3428.8,3428.0,2.91713]
[1718742668574,2.085,3429.0,3428.1,2.91706]
[1718742668775,5.00137,3429.0,3428.2,3.50039]
[1718742669176,2.9164,3428.9,3428.2,3.50039]
[1718742669435,5.8875823,3429.1,3428.5,2.91671]
[1718742669611,5.8875823,3429.1,3428.6,2.91664]
[1718742670395,5.8875823,3429.1,3428.7,2.91654]
[1718742670608,5.8875823,3429.6,3429.1,2.91619]
[1718742671010,3.4227,3429.7,3429.2,2.91612]
[1718742671517,3.4227,3430.1,3429.8,2.9156]
[1718742671700,0.2924,3430.4,3429.8,3.20716]
[1718742671876,0.2924,3430.4,3429.8,0.29156]
[1718742672215,2.91546,3430.0,3429.3,2.91596]
[1718742672688,2.91555,3429.9,3429.1,2.9162]
[1718742672884,2.91555,3429.9,3428.8,3.499778]
[1718742672885,2.91571,3429.7,3428.8,3.499778]
[1718742673094,6.40651,3429.7,3428.8,3.499778]
[1718742673301,6.40651,3429.7,3428.8,2.91646]
[1718742674093,5.00102,3429.4,3428.4,2.91677]
[1718742674289,2.91612,3429.3,3428.5,2.9167]
[1718742674484,2.91624,3429.1,3428.2,3.50032]
[1718742674716,2.91633,3429.0,3428.2,0.58342]
[1718742674887,2.91656,3428.7,3427.7,2.9174]
[1718742675088,3.20896,3428.7,3427.8,2.91731]
[1718742675402,2.91665,3428.6,3427.8,2.91731]
[1718742675609,0.2924,3428.7,3428.1,2.91704]
[1718742675796,0.2924,3428.7,3428.2,0.583422]
[1718742676000,3.3968,3428.8,3427.4,2.91762]
[1718742676001,2.91699,3428.2,3427.4,2.91765]
[1718742677123,2.91708,3428.1,3427.3,2.9177]
[1718742677309,2.91732,3427.8,3427.4,0.875341]
[1718742677485,2.91732,3427.8,3427.0,2.84]
[1718742677908,5.00206,3428.2,3427.4,2.91765]
[1718742678106,2.085,3428.2,3427.0,5.75798]
[1718742678316,2.91708,3428.1,3427.1,0.575798]
[1718742678526,2.91724,3427.9,3427.1,0.575798]
[1718742678788,2.91715,3428.0,3427.3,2.91773]
[1718742679493,2.91715,3428.0,3427.2,0.3415798]
[1718742679494,6.41273,3427.8,3427.2,0.3415798]
[1718742680327,3.4954,3427.8,3427.2,0.3415798]
[1718742680515,3.4954,3427.8,3427.0,2.91799]
[1718742680516,2.91722,3428.0,3426.8,2.91812]
[1718742680738,2.91716,3428.0,3426.8,2.91812]
[1718742681339,2.91762,3427.5,3426.6,2.91826]
[1718742681908,2.91762,3427.5,3426.7,2.91824]
[1718742682131,2.91758,3427.5,3426.8,0.58365]
[1718742682316,2.91758,3427.5,3426.7,2.91821]
[1718742682505,2.91758,3427.5,3426.6,2.91833]
[1718742682506,2.91767,3427.4,3426.6,2.91833]
[1718742683920,2.91757,3427.5,3426.6,2.91833]
[1718742684144,2.91785,3427.2,3426.3,5.75852]
[1718742684345,2.91785,3427.2,3426.3,2.84]
[1718742684511,2.91795,3427.1,3426.3,2.84]
[1718742685270,2.91795,3427.1,3426.3,5.75852]
[1718742686211,2.91795,3427.1,3426.4,0.867718]
[1718742687345,2.9181,3426.9,3426.4,0.867718]
[1718742687551,2.91801,3427.0,3426.4,0.867718]
[1718742687733,2.91801,3427.0,3425.9,1.3349]
[1718742687734,2.91826,3426.7,3425.9,2.91893]
[1718742688136,2.91843,3426.5,3425.7,2.9191]
[1718742688346,3.21058,3426.8,3425.8,2.919]
[1718742688510,6.77758,3426.8,3425.8,2.919]
[1718742688715,2.91836,3426.6,3425.8,2.919]
[1718742689019,2.91836,3426.6,3425.9,0.87573]
[1718742689642,2.91876,3426.2,3425.3,2.91944]
[1718742689847,5.00349,3426.5,3425.3,2.91944]
[1718742689848,3.211,3426.3,3425.3,2.91944]
[1718742690019,3.211,3426.3,3425.4,2.91935]
[1718742690020,2.91877,3426.1,3425.4,2.91935]
[1718742690355,2.91869,3426.2,3425.5,0.583887]
[1718742690722,2.91884,3426.1,3425.5,0.583887]
[1718742691660,2.91884,3426.1,3425.3,2.91937]
[1718742692118,3.21099,3426.4,3425.6,2.91919]
[1718742692457,6.21099,3426.4,3425.6,2.91919]
[1718742692616,6.21099,3426.4,3425.7,2.9191]
[1718742692818,3.0,3426.4,3426.2,2.91868]
[1718742693154,0.2924,3427.0,3426.0,2.91877]
[1718742693316,0.2924,3427.0,3426.4,2.91849]
[1718742693520,3.2924,3427.0,3426.4,2.91849]
[1718742693721,5.91801,3427.0,3426.4,0.583709]
[1718742694044,0.2924,3426.9,3426.2,2.9186]
[1718742694222,3.21051,3426.9,3426.1,2.91875]
[1718742694423,3.21051,3426.9,3426.2,0.583752]
[1718742695060,2.91811,3426.9,3426.2,0.583752]
[1718742695261,5.91801,3427.0,3426.2,0.583752]
[1718742695448,2.91833,3426.7,3425.9,2.91887]
[1718742696378,2.91834,3426.6,3425.8,2.919]
[1718742696673,0.2924,3426.4,3425.4,2.91928]
[1718742696841,2.9186,3426.3,3425.4,2.91928]
[1718742697036,2.91869,3426.2,3425.5,2.91926]
[1718742697441,2.91869,3426.2,3425.4,2.91935]
[1718742697639,2.91883,3426.1,3425.3,2.91944]
[1718742697842,3.211,3426.3,3425.4,0.6130973]
[1718742698237,3.211,3426.3,3424.9,2.91975]
[1718742698238,2.91918,3425.7,3424.9,2.91979]
[1718742698448,2.91918,3425.7,3424.4,0.50850695]
[1718742698449,2.9194,3425.4,3424.4,0.50850695]
[1718742698649,2.91929,3425.5,3424.7,2.91995]
[1718742699147,2.91937,3425.4,3424.7,2.91995]
[1718742699454,8.38932,3425.7,3424.7,3.503957]
[1718742699664,8.38932,3425.7,3424.8,2.91987]
[1718742699877,8.38932,3425.7,3424.7,3.503967]
[1718742700090,2.91928,3425.5,3424.8,2.91985]
[1718742700250,2.91944,3425.4,3424.7,0.584007]
[1718742700448,2.91944,3425.4,3424.6,2.92003]
[1718742700672,2.91944,3425.4,3424.7,2.91995]
[1718742700890,2.91944,3425.4,3423.8,1.3058]
[1718742700891,2.9192,3425.6,3424.4,2.92017]
[1718742701085,2.9192,3425.6,3424.8,2.91981]
[1718742701371,2.91943,3425.4,3424.5,2.92012]
[1718742701574,2.91943,3425.4,3424.6,0.292012]
[1718742702176,2.91906,3425.8,3423.9,0.4577541]
[1718742702177,2.91996,3424.7,3423.9,2.92064]
[1718742702395,5.00482,3424.9,3423.8,2.92069]
[1718742702546,6.31985,3425.2,3424.0,2.92054]
[1718742702547,3.0,3425.1,3424.0,2.92054]
[1718742702741,3.0,3425.1,3423.9,3.213699]
[1718742702742,2.91998,3424.7,3423.9,3.213699]
[1718742702947,5.91966,3425.1,3423.7,0.005]
[1718742702948,2.91991,3424.8,3423.7,0.005]
[1718742703165,2.9207,3423.9,3423.7,0.005]
[1718742703364,3.4156,3424.4,3423.7,0.005]
[1718742703568,2.92065,3423.9,3423.7,0.005]
[1718742703743,3.0,3424.3,3423.7,0.005]
[1718742703954,5.92037,3424.3,3423.7,0.005]
[1718742704564,2.085,3424.0,3423.7,0.005]
[1718742704864,2.92073,3423.8,3423.7,0.005]
[1718742705052,4.171337,3424.3,3423.7,0.005]
[1718742705242,2.085,3424.2,3423.7,0.005]
[1718742706291,5.00544,3424.2,3423.7,0.005]
[1718742706587,2.92056,3424.0,3423.7,0.005]
[1718742707017,2.92068,3423.9,3423.7,0.005]
[1718742707283,2.92056,3424.0,3423.7,0.005]
[1718742707284,8.21886,3423.8,3423.7,0.005]
[1718742707481,7.92646,3423.8,3423.7,0.005]
[1718742708269,14.44989,3423.8,3423.7,0.005]
[1718742708461,17.44989,3423.8,3423.7,0.005]
[1718742708660,17.44989,3423.8,3423.6,0.005]
[1718742708661,9.05483,3423.7,3423.6,0.005]
[1718742708970,14.1210806,3423.7,3423.6,0.005]
[1718742709687,2.92112,3423.4,3423.2,0.005]
[1718742709908,5.92115,3423.3,3423.2,0.005]
[1718742710095,3.0,3423.3,3423.2,0.005]
[1718742710256,3.3103,3423.6,3423.2,0.005]
[1718742710454,3.0,3423.5,3423.2,0.005]
[1718742710755,6.873403,3423.5,3423.2,0.005]
[1718742711758,3.952343,3423.5,3423.2,0.005]
[1718742711980,3.0,3423.5,3423.2,0.005]
[1718742712152,0.2924,3423.8,3423.4,2.92105]
[1718742712484,6.3869,3424.1,3423.4,2.92105]
[1718742712788,7.62607,3424.1,3423.4,2.92105]
[1718742713167,10.83897,3424.1,3423.4,2.92105]
[1718742713368,10.54657,3424.1,3423.4,2.92105]
[1718742713976,2.92074,3423.8,3423.2,0.005]
[1718742714163,3.212904,3423.7,3423.2,0.005]
[1718742714683,2.92107,3423.4,3423.2,0.005]
[1718742714910,3.376474,3423.7,3423.2,0.005]
[1718742714911,5.8423,3423.3,3423.2,0.005]
[1718742715114,9.1896,3423.3,3423.2,0.005]
[1718742715278,10.700672,3423.3,3423.2,0.005]
[1718742715485,5.8423,3423.3,3423.2,0.005]
[1718742715689,2.9204,3424.2,3423.2,0.005]
[1718742716022,2.92064,3424.0,3423.2,0.005]
[1718742716317,2.92065,3423.9,3423.2,0.005]
[1718742716512,2.92097,3423.6,3423.2,0.005]
[1718742716673,0.88417,3423.5,3423.2,0.005]
[1718742717790,5.9209,3423.6,3423.2,0.005]
[1718742718189,3.0,3423.6,3423.2,0.005]
[1718742718415,3.0,3423.8,3423.4,2.92105]
[1718742718615,3.3473,3424.3,3423.9,2.92063]
[1718742718919,3.4423,3424.7,3424.1,2.9204]
[1718742719141,3.0,3424.6,3424.5,2.92013]
[1718742719277,3.0,3424.6,3424.3,2.92029]
[1718742719475,3.2924,3425.0,3424.1,2.9204]
[1718742719681,6.21211,3425.0,3423.9,2.92059]
[1718742719935,0.953236,3424.9,3424.1,2.92045]
[1718742720138,0.953236,3424.9,3423.7,2.92077]
[1718742720287,1.245636,3424.9,3424.0,2.92049]
[1718742720485,1.0485736,3424.8,3424.2,2.92037]
[1718742720925,2.92025,3424.4,3423.6,2.9209]
[1718742721131,3.9684836,3424.8,3423.0,2.92139]
[1718742721132,2.92063,3424.0,3423.0,2.92139]
[1718742721285,0.58411,3423.9,3423.3,2.92114]
[1718742721485,2.92048,3424.1,3423.3,2.92114]
[1718742721707,6.0567,3424.3,3423.6,2.92087]
[1718742721919,3.2647,3424.3,3423.3,2.92115]
[1718742722106,2.92046,3424.2,3423.3,0.292615]
[1718742722293,2.92058,3424.0,3423.2,2.92616]
[1718742722487,2.92058,3424.0,3423.3,2.92115]
[1718742722683,3.21298,3424.0,3423.3,2.92115]
[1718742723632,3.21298,3424.0,3423.2,0.005]
[1718742723633,4.444818,3424.0,3423.2,0.005]
[1718742723789,2.92081,3423.7,3423.2,0.005]
[1718742723983,2.92092,3423.6,3423.2,0.005]
[1718742725321,2.92103,3423.5,3423.2,0.005]
[1718742725515,3.505225,3423.5,3423.2,0.005]
[1718742725882,0.584195,3423.5,3423.2,0.005]
[1718742726135,6.28749,3423.5,3423.2,0.005]
[1718742726341,2.92137,3423.1,3421.9,2.92234]
[1718742726545,5.71315,3423.3,3422.3,2.92199]
[1718742726861,2.92125,3423.2,3422.5,2.92183]
[1718742727018,2.92125,3423.2,3422.4,2.92191]
[1718742727019,4.12134,3423.2,3422.4,2.92191]
[1718742727202,2.92141,3423.0,3422.0,2.92226]
[1718742727543,2.92141,3423.0,3422.1,2.92216]
[1718742727761,2.92151,3422.9,3422.1,2.92216]
[1718742728056,4.12133,3423.2,3422.4,2.9219]
[1718742728210,2.92134,3423.1,3422.1,2.92216]
[1718742728547,2.92184,3422.5,3421.4,2.92272]
[1718742729132,3.445,3422.8,3421.3,3.0]
[1718742729457,2.92168,3422.7,3421.4,2.92276]
[1718742729710,0.2924,3422.6,3421.5,2.92267]
[1718742729847,2.92209,3422.2,3421.0,2.92308]
[1718742730047,2.92209,3422.2,3421.3,2.92284]
[1718742730277,2.92227,3422.0,3421.2,2.92294]
[1718742730435,2.92244,3421.8,3420.7,2.92334]
[1718742730634,2.92244,3421.8,3421.0,2.92311]
[1718742730635,2.9225,3421.8,3421.0,2.92311]
[1718742730834,2.92234,3422.0,3421.1,2.92301]
[1718742731052,2.92273,3421.5,3420.7,2.92337]
[1718742731221,2.77673,3421.5,3420.7,2.92337]
[1718742731422,3.21492,3421.7,3420.7,0.584691]
[1718742731423,0.2924,3421.6,3420.7,0.584691]
[1718742731623,0.2624,3421.5,3420.7,2.92337]
[1718742731983,0.2624,3421.5,3420.8,2.92328]
[1718742732203,0.2624,3421.5,3419.9,2.92398]
[1718742732204,0.2624,3421.5,3420.5,2.92354]
[1718742732466,2.92285,3421.4,3420.6,2.92345]
[1718742733025,10.2925,3421.8,3420.9,2.92318]
[1718742733026,7.37,3421.8,3420.9,2.92318]
[1718742733338,7.37,3421.8,3421.3,2.92286]
[1718742733550,7.37,3421.8,3421.5,2.92261]
[1718742733722,3.5476,3422.4,3421.5,2.92268]
[1718742733723,10.29201,3422.3,3421.5,2.92268]
[1718742733925,2.9221,3422.2,3421.3,2.92286]
[1718742734144,2.9221,3422.2,3421.3,3.2443778]
[1718742734361,7.37,3422.3,3421.9,2.92234]
[1718742734724,7.37,3422.3,3422.1,2.9221]
[1718742734925,7.37,3422.3,3421.9,2.92227]
[1718742735189,7.37,3422.3,3422.1,2.92217]
[1718742735337,7.37,3422.3,3422.2,8.76627]
[1718742735523,7.37,3422.9,3422.0,0.876719]
[1718742735830,7.37,3422.9,3421.6,2.92255]
[1718742735831,2.92158,3422.8,3421.6,2.92255]
[1718742736026,7.37,3422.9,3422.2,2.92206]
[1718742736253,7.37,3422.9,3422.4,2.92191]
[1718742736442,7.37,3422.9,3422.5,2.92176]
[1718742736853,10.29157,3422.9,3422.0,2.92219]
[1718742737035,0.2924,3422.8,3422.1,0.292219]
[1718742737281,10.29157,3422.9,3422.1,0.292219]
[1718742737484,2.92202,3422.3,3421.4,2.92277]
[1718742737768,2.92194,3422.4,3421.6,2.92257]
[1718742738357,2.92194,3422.4,3421.5,2.92269]
[1718742738358,2.92212,3422.2,3421.5,2.92269]
[1718742738571,2.92203,3422.3,3421.6,2.92258]
[1718742738872,2.92203,3422.3,3421.5,2.92268]
[1718742739083,2.92203,3422.3,3421.4,3.24721278]
[1718742739084,2.92218,3422.1,3421.4,0.32444278]
[1718742739229,2.92234,3422.0,3421.2,2.92291]
[1718742739660,2.92236,3421.9,3421.1,2.92302]
[1718742740382,2.92254,3421.7,3421.0,3.215438]
[1718742740579,6.13702,3422.0,3421.0,2.92312]
[1718742740580,2.92245,3421.8,3421.0,2.92312]
[1718742740738,0.2924,3422.0,3421.2,2.92294]
[1718742741092,2.92244,3421.8,3421.0,2.92312]
[1718742741563,2.92235,3421.9,3421.2,2.92291]
[1718742741765,0.2924,3422.0,3420.2,4.1762]
[1718742741766,3.21468,3422.0,3420.2,4.1762]
[1718742741989,3.3057,3421.1,3419.8,2.9748994]
[1718742742297,2.92337,3420.7,3419.9,2.92397]
[1718742742450,5.71512,3421.0,3420.0,2.92396]
[1718742742781,2.92322,3420.9,3420.1,2.92388]
[1718742742940,2.92353,3420.6,3419.8,2.92413]
[1718742743140,2.92322,3420.9,3419.8,2.92406]
[1718742743348,13.59874,3421.1,3420.2,2.9238]
[1718742743553,7.37,3421.6,3420.2,1.852484]
[1718742744188,7.37,3421.6,3421.2,2.92287]
[1718742744493,2.92235,3421.9,3421.0,2.92305]
[1718742744689,6.30977,3422.0,3421.1,2.92303]
[1718742745144,3.3875,3422.0,3421.4,2.92277]
[1718742745339,3.3875,3422.0,3421.5,2.92263]
[1718742745943,3.3875,3422.0,3421.0,2.92312]
[1718742746175,2.92243,3421.9,3421.1,2.92302]
[1718742746498,2.92243,3421.9,3421.2,2.92294]
[1718742746782,8.736983,3422.0,3421.2,2.92294]
[1718742747155,9.029383,3422.0,3421.2,2.92294]
[1718742747335,9.029383,3422.0,3421.3,2.92285]
[1718742747840,6.107123,3422.0,3421.4,2.92275]
[1718742748040,6.107123,3422.0,3421.3,2.92285]
[1718742748483,9.029393,3422.0,3421.3,2.92285]
[1718742748690,2.92237,3421.9,3421.2,2.92293]
[1718742748846,0.2924,3421.9,3421.2,2.92293]
[1718742749186,0.2924,3421.9,3421.3,2.92284]
[1718742749744,3.21499,3421.7,3420.7,2.92331]
[1718742749952,2.92244,3421.8,3420.7,2.92337]
[1718742749953,3.21517,3421.5,3420.7,2.92337]
[1718742750171,0.2924,3421.5,3420.7,2.92337]
[1718742750444,3.21533,3421.3,3420.5,2.92353]
[1718742750643,3.21533,3421.3,3420.2,2.92375]
[1718742750644,2.92295,3421.2,3420.4,2.92363]
[1718742750843,3.4492,3421.0,3420.3,2.9237]
[1718742751156,6.37234,3421.0,3420.1,2.92388]
[1718742751488,6.66473,3421.0,3420.2,2.92379]
[1718742752046,3.7416,3421.0,3420.4,5.84726]
[1718742752282,3.4492,3421.5,3421.0,2.9231]
[1718742752484,6.4492,3421.5,3421.1,2.92303]
[1718742752690,0.2924,3421.6,3421.1,2.92303]
[1718742752892,7.37,3422.0,3421.2,0.292303]
[1718742753186,7.37,3422.0,3421.4,2.92277]
[1718742753397,10.29227,3422.0,3421.3,2.92284]
[1718742753593,10.58467,3422.0,3421.3,2.92284]
[1718742754458,7.6624,3422.0,3421.4,2.92277]
[1718742755176,7.6624,3422.0,3420.7,2.92336]
[1718742755357,7.6624,3422.0,3421.7,2.9225]
[1718742755866,7.6624,3422.0,3421.8,2.92243]
[1718742756294,0.2924,3422.1,3421.7,2.9225]
[1718742756588,0.2924,3422.1,3420.8,0.292336]
[1718742756799,3.21468,3422.0,3421.3,2.92286]
[1718742757083,10.37,3422.6,3421.9,2.92229]
[1718742757084,7.6624,3422.6,3421.9,2.92229]
[1718742757259,0.79832295,3422.6,3421.9,2.92229]
[1718742757462,0.2924,3422.6,3422.0,2.92224]
[1718742757758,3.21448,3422.3,3421.5,2.92262]
[1718742758150,2.9221,3422.2,3421.5,2.92262]
[1718742758345,2.92218,3422.1,3421.4,2.92277]
[1718742758964,0.65465393,3422.2,3421.3,2.92285]